{"text_format":"1","workbook":"xlsx","n_sheets":6,"sheets":["Ark1","Ark2","Ark3","Ark4","Ark5","Ark6"],"not_rendered":{"charts":0,"images":29,"macros":1,"external_links":0,"defined_names":2,"comments":0,"pivot_tables":0},"unopened":[],"bounds":{"document_bytes":16777216,"sheet_cells":100000,"rows_first":2000,"rows_last":500,"rows_between":2000,"halvings":0,"cell_chars":16384,"cell_head_chars":4096},"cells_cut":0,"cells_raw":0,"read":"whole","date_system":"1900"}

{"sheet":"Ark1","index":0,"n_rows":167,"n_cols":104,"rows_kept":167,"cut":false,"hidden":false,"merged":[[73,16,73,30],[60,0,60,13],[53,0,53,13],[68,16,68,30],[69,16,69,30],[70,16,70,30],[71,16,71,30],[72,16,72,30]]}
[]
[null,null,null,null,null,"De danske Melangyna-arter. (Diptera: Syrphidae)"]
[null,null,null,null,null,"Hanner",null,null,null,null,null,null,null,null,null,null,"Bent Haagen Petersen"]
["Denne nøgle gælder for hanner. Hanner har øjnene sammenstødende. Hunner har øjnene tydeligt adskilte."]
["Svirreflueslægten Melangyna er kendetegnet ved bagkroppens  parvise ovale eller rektangulære pletter. Hos "]
["nogle arter er pletterne tilspidsede mod midten, aldrig tilspidsede opefter ved bagkroppens sidekanter. Bag- "]
["benene er sorte eller næsten sorte. Ansigtet har en meget bred sort midterstribe med gule sider eller er helt"]
["sort. Øjnene kan være ubehårede eller have kortere eller længere hår. Behåringen kan være meget vanske- "]
["lig at se på billeder, men den er et vigtigt kendetegn for nogle arter.  "]
[]
["I Danmark omfatter slægten 7 arter. Melangna labiatarum betragtes som værende en variant af M. com- "]
["positarum. Nogle forfattere betragter i nyere litteratur de to slægter Fagisyrphus og Meligramma som væ-"]
["rende underslægter til Melangyna. I denne nøgle  følger navngivningen den danske www.allearter.dk."]
["Arterne i de to slægter er derfor ikke indeholdt i nøglen, men Fagisyrphus adskilles let ved at have gule"]
["bånd på 3, og 4, bagkropsled og trekantet plet på 2. led. Meligramma har ansigtet helt gult og ofte gul plet"]
["bagtil på brystet."]
[]
["Nogle arter  i slægten kan være vanskelige at bestemme, især efter billeder. En lille hjælp er det, at arterne"]
["kan opdeles i forårsarter og sommerarter. Fem af arterne er forårsarter. De kan findes frem til maj,"]
["måske først i juni. Sommerarterne M. compositarum og M. umbellatarum er typisk fremme i juni, juli og"]
["august måned. Dem skal man helst bestemme ved at betragte mikroskopisk behåring på vingerne. Det er"]
["selvfølgelig ikke muligt med billeder, men er nøglens kendetegn ellers tydelige at se, kan  bestemmelse være"]
["forsvarlig. Vanskeligt kan det også være at bestemme M. barbifrons og M. quadrimaculata. Her  spiller"]
["behåringens farve en vigtig rolle, men lysets spil i behåringen gør det ofte vanskelig at afgøre, hvad der er "]
["hvidt og hvad der er sort. Men et godt kendetegn for M. barbifrons er den meget brede øjenvinkel. Se billede."]
[]
[null,"Sådan bruger man bedst nøglen"]
[]
["Nøglen er specielt konstrueret til brug ved bestemmelse af fluer på billeder. Den bruger samme kendetegn"]
["som de almindelige nøgler. Blot er man ikke nødt til at gå frem i nøglen i en given rækkefølge, som man skal"]
["med almindelige nøgler. Det er en fordel, da der på billeder som regel vil være kendetegn, der ikke er syn-"]
["lige. Med nøglen her klikker man i helt vilkårlig rækkefølge kun på de kendetegn, man kan se på billedet. Man "]
["behøver altså ikke starte med øverste nøglespørgsmål. Det er altid bedst at starte med kendetegn, som er "]
["meget tydelige på billedet. Hver gang man klikker på et kendetegn, vises kendetegnet på et billede. Klikker man"]
["på et kendetegn, som ikke passer med nøglens, gør nøglen opmærksom på, at en sikker bestemmelseda næppe"]
["vil være mulig. Kendetegn vises til højre  for nøglen som øverste billede. Under vises billede af arterne."]
["I takt med, at man klikker på kendetegn, kan man på oversigten over arterne se, at antallet af mulige arter"]
["bliver mindre. Når der kun er 1 navn tilbage i artsoversigten, skriver nøglen, at fluen nu er bestemt, og dens"]
["navn vises øverst på skemaet. Derefer bør man klikke på fluen navn i artsoverigten for at læse beskrivelsen af "]
["fluen. Samtidig hermed vises et billede af fluen. Er man derefter helt sikker på bestemmelsen, kan man ind-"]
["rapportere observationen. Er man ikke særlig øvet i at bestemme fluer, bør man sikre sig, at bestemmelsen"]
["er rigtig ved først at vise den i Fugle&Naturs tovinge-forum."]
[]
[]
[]
["Nøgle til de danske Melangyna-HANNER. (Diptera: Syrphidae)",null,null,null,null,null,null,null,null,null,null,null,null,null,null,null,null,null,null,null,null,null,null,null,null,null,null,null,null,null,null,null,null,null,null,null,null,null,null,null,null,null," ",null,null," ",null,null,null,null,null,null,null,null,null,null,null,null,null,null,null,null,null,null,null,null,null,null,null,null,null,null,null,null,null,null,null,null,null,null,null,null,null,null,"Øverste billede viser kendetegn"]
[]
[null,"HANNER",null,null,null,null,null,null,null,null,null,null,null,null,null,null,null,null,null,{"$f":"IF(AR53=1,VLOOKUP(AR52,BL55:BM67,2,FALSE),\"     Melangyna sp.\")","v":"     Melangyna sp."},null,null,null,null,null,null,null,null,null,null,null,null,null,null,null,null,null,null,null,null,null,null,null,null,null,null,null,null,null,null,null,null,null,null,null,null,null,null,null,null,null,null,null,null,null,null,null,null,null,null,null,null,null,null,null,null,19]
[]
["Forårsart, observeret senest maj måned ?",null,null,null,null,null,null,null,null,null,null,null,null,null,null,null,null,null,null,{"$f":"IF(AR53=1,VLOOKUP(AR52,BB70:BC87,2,FALSE),\"          Svirreflue\")","v":"          Svirreflue"},null,null,null,null,null,null,null,null,null,null,null,null,null,null,null,null," ","Afkrydsede felter",null,null,null,null,null,{"$f":"SUM(AS50+AU50+AW50+AZ50+BB50+BD50+BF50+BH50)","v":0},{"$f":"IF(AT50=0,0,1)","v":0},{"$f":"SUM(AS51:AT51)","v":0},{"$f":"IF(AV50=0,0,1)","v":0},{"$f":"SUM(AU51:AV51)","v":0},{"$f":"IF(AX50=0,0,1)","v":0},{"$f":"SUM(AW51:AY51)","v":0},null,{"$f":"IF(BA50=0,0,1)","v":0},{"$f":"SUM(AZ51:BA51)","v":0},{"$f":"IF(BC50=0,0,1)","v":0},{"$f":"SUM(BB51:BC51)","v":0},{"$f":"IF(BE50=0,0,1)","v":0},{"$f":"SUM(BD51:BE51)","v":0},{"$f":"IF(BG50=0,0,1)","v":0},{"$f":"SUM(BF51:BG51)","v":0},{"$f":"IF(BI50=0,0,1)","v":0},{"$f":"SUM(BH51:BK51)","v":0},null,null,null,null,null,null,null,null,null,null,null,null,null,null,null,null,{"$f":"IF(CB50,\"x\",\" \")","v":" "},null,0]
["Sommerart, juni-august ?",null,null,null,null,null,null,null,null,null,null,null,null,null,null,null,null,{"$f":"IF(AR53=1,\"      Fluen er nu bestemt.  Se ovenfor. \",IF(AR50=0,\" \",IF(AR50>AR52,\" \",\"Se de mulige arter i oversigten nedenfor.\")))","v":" "},null,null,null,null,null,null,null,null,null,null,null,null,null,null,null,null,null,null,null,null,null,null,null,null,null,null,{"$f":"IF(BZ50=\" \",0,1)","v":0},{"$f":"IF(BZ51=\" \",0,1)","v":0},{"$f":"IF(BZ53=\" \",0,1)","v":0},{"$f":"IF(BZ54=\" \",0,1)","v":0},{"$f":"IF(BZ56=\" \",0,1)","v":0},{"$f":"IF(BZ57=\" \",0,1)","v":0},{"$f":"IF(BZ58=\" \",0,1)","v":0},{"$f":"IF(BZ60=\" \",0,1)","v":0},{"$f":"IF(BZ61=\" \",0,1)","v":0},{"$f":"IF(BZ63=\" \",0,1)","v":0},{"$f":"IF(BZ64=\" \",0,1)","v":0},{"$f":"IF(BZ66=\" \",0,1)","v":0},{"$f":"IF(BZ67=\" \",0,1)","v":0},{"$f":"IF(BZ69=\" \",0,1)","v":0},{"$f":"IF(BZ70=\" \",0,1)","v":0},{"$f":"IF(BZ72=\" \",0,1)","v":0},{"$f":"IF(BZ73=\" \",0,1)","v":0},{"$f":"IF(BZ74=\" \",0,1)","v":0},{"$f":"IF(BZ75=\" \",0,1)","v":0},null,null,null,null,null,null,null,null,null,null,null,null,null,null,{"$f":"IF(CB51,\"x\",\" \")","v":" "},null,0]
[null,null,null,null,null,null,null,null,null,null,null,null,null,null,null,null,{"$f":"IF(AR50>AR52,\"Afkrydsede kendetegn passer ikke med nøglens.\",\" \")","v":" "},null,null,null,null,null,null,null,null,null,null,null,null,null,null,null,null,null," ",null,null,null,null,null,"Maks.",null,null,{"$f":"MAX(AR55:AR61)","v":0},null,null,null,null,null,null,null,null,null,null,null,null,null,null,null,null,null,null,null,null,null,null,null,null,null,null,null,null,null,null,null,null,null," "]
["Øjne mere eller mindre tydeligt behårede ?",null,null,null,null,null,null,null,null,null,null,null,null,null,null,null,{"$f":"IF(AR50>AR52,\"Det gør en bestemmelse tvivlsom.    Prøv igen !\",\" \")","v":" "},null,null,null,null,null,null,null,null,null,null,null,null,null,null,null,null,null,null,null,null,null,null,"Antal Maks.",null,null,null,{"$f":"COUNTIF(AR55:AR67,AR52)","v":13},null,null,null,null,null,null,null,null,null,null,null,null,null,null,null,null,null," ",null,null,null,null,null,null,null,null,null,null,null,null,null,null,null,{"$f":"IF(CB53,\"x\",\" \")","v":" "},null,0]
["Øjne ubehårede ?",null,null,null,null,null,null,null,null,null,null,null,null,null,null,null," ",null,null,null,null,null,null,null,null,null,null,null,null,null,null,null,null,null,null,null,null,null,null,null,null,null,null,"sum","ansigt",null,"øjne",null,"sct",null,null,"bagkrop",null,"pl",null,"runde",null,null,null,"overside",null,null,null,"sum",null,null,null,null,null,null,null,null,null,null,null,null,null,{"$f":"IF(CB54,\"x\",\" \")","v":" "},null,0,null,null,null,null,null,null,null,null,null,null,null,null,null,null,null,null,null,null,null,null,null,null,null," "]
[null,null,null,null,null,null,null,null,null,null,null,null,null,null,null,null,"  Klik ved den Melangyna-art, som du vil læse om.",null,null,null,null,null,null,null,null,null,null,null,null,null,null,null,null,null,1,"barbifrons",null,null,null,null,null,null,null,{"$f":"SUM(AS55:BK55)","v":0},{"$f":"IF(BZ50=\"x\",1,\" \")","v":" "},{"$f":"IF(BZ51=\"x\",1,\" \")","v":" "},null,{"$f":"IF($BZ$54=\"x\",1,\" \")","v":" "},null,null,{"$f":"IF($BZ$58=\"x\",1,\" \")","v":" "},null,{"$f":"IF($BZ$61=\"x\",1,\" \")","v":" "},null,{"$f":"IF($BZ$64=\"x\",1,\" \")","v":" "},null,{"$f":"IF($BZ$67=\"x\",1,\" \")","v":" "},{"$f":"IF($BZ$69=\"x\",1,\" \")","v":" "},null,{"$f":"IF($BZ$72=\"x\",1,\" \")","v":" "},null,{"$f":"IF($BZ$74=\"x\",1,\" \")","v":" "},null,{"$f":"SUM(AS55:BK55)","v":0},"Melangyna barbifrons",null,null,null,null,null,null,null,null,null,null,null,null," ",null,null,null,null,null,null,null,null,null,null,null,null,null,null,null,null,null,null,null,null,null,null,null,null,null," "]
["Scutellum gulligt med sort plet i forhjørnerne ?",null,null,null,null,null,null,null,null,null,null,null,null,null,null,null,null,null,null,null,null,null,null,null,null,null,null,null,null,null,null,null,null,null,2,"compositarum",null,null,null,null,null,null,null,0," ",{"$f":"IF(BZ51=\"x\",1,\" \")","v":" "},{"$f":"IF($BZ$53=\"x\",1,\"\")","v":""},{"$f":"IF($BZ$54=\"x\",1,\" \")","v":" "},{"$f":"IF(BZ56=\"x\",1,\" \")","v":" "},null,null,{"$f":"IF(BZ60=\"x\",1,\" \")","v":" "},null,{"$f":"IF($BZ$63=\"x\",1,\" \")","v":" "}," ",null,{"$f":"IF($BZ$67=\"x\",1,\" \")","v":" "},null,{"$f":"IF($BZ$70=\"x\",1,\" \")","v":" "},{"$f":"IF($BZ$72=\"x\",1,\" \")","v":" "},null,null,{"$f":"IF($BZ$75=\"x\",1,\" \")","v":" "},0,"Melangyna compositorum",null,null,null,null,null,null,null,null,null,null,null,null,{"$f":"IF(CB56,\"x\",\" \")","v":" "},null,0]
["Sorte plet kileformet forlænget på sidekanten ?",null,null,null,null,null,null,null,null,null,null,null,null,null,null,null,null,null,null,null,null,null,null,null,null,null,null,null,null,null,null,null,null,null,3,"lasiophthalma",null,null,null,null,null,null,null,{"$f":"SUM(AS57:BK57)","v":0},{"$f":"IF(BZ50=\"x\",1,\"\")","v":""},{"$f":"IF(BZ51=\"x\",1,\" \")","v":" "},{"$f":"IF($BZ$53=\"x\",1,\"\")","v":""},null,null,{"$f":"IF($BZ$57=\"x\",1,\" \")","v":" "},null,{"$f":"IF(BZ60=\"x\",1,\" \")","v":" "},null,{"$f":"IF($BZ$63=\"x\",1,\" \")","v":" "},null,null," ",{"$f":"IF($BZ$69=\"x\",1,\" \")","v":" "},null," ",null,null," ",{"$f":"SUM(AS57:BK57)","v":0},"Melangyna lasophthalma",null,null,null,null,null,null,null,null,null,null,null,null,{"$f":"IF(CB57,\"x\",\" \")","v":" "},null,0]
["Scutellum sort, måske sortbrunt midt på?",null,null,null,null,null,null,null,null,null,null,null,null,null,null,null," ",null,1,{"$f":"IF(AR55=AR52,AJ55,\" \")","v":"barbifrons"},null,null,null,null,null,null,null,null,null,null," ",null,null,null,4,"lucifera ",null,null,null,null,null,null,null,0,{"$f":"IF(BZ50=\"x\",1,\"\")","v":""},{"$f":"IF(BZ51=\"x\",1,\" \")","v":" "},""," ",null,{"$f":"IF($BZ$57=\"x\",1,\" \")","v":" "},null,{"$f":"IF(BZ60=\"x\",1,\" \")","v":" "},null," ",{"$f":"IF($BZ$64=\"x\",1,\" \")","v":" "},{"$f":"IF($BZ$66=\"x\",1,\" \")","v":" "},null," ",null," ",null,null," ",0," Melangyna lucifera",null,null,null,null,null,null,null,null,null,null,null,null,{"$f":"IF(CB58,\"x\",\" \")","v":" "},null,0]
[null,null,null,null,null,null,null,null,null,null,null,null,null,null,null,null,null,null,2,{"$f":"IF(AR56=AR52,AJ56,\" \")","v":"compositarum"},null,null,null,null,null,null,null,null,null,null,null,null,null,null,5,"pavlovskyi",null,null,null,null,null,null,null,0,{"$f":"IF(BZ50=\"x\",1,\"\")","v":""},{"$f":"IF(BZ51=\"x\",1,\" \")","v":" "},""," "," ",{"$f":"IF($BZ$57=\"x\",1,\" \")","v":" "},null,{"$f":"IF(BZ60=\"x\",1,\" \")","v":" "},{"$f":"IF($BZ$61=\"x\",1,\" \")","v":" "},{"$f":"IF($BZ$63=\"x\",1,\" \")","v":" "},null,{"$f":"IF($BZ$66=\"x\",1,\" \")","v":" "},null," ",null," ",null,null," ",0,"Melangyna pavlovskyi",null,null,null,null,null,null,null,null,null,null,null,null," "]
["Bagkrop med parvise pletter på 2., 3. og 4. led ?",null,null,null,null,null,null,null,null,null,null,null,null,null,null,null,null,null,3,{"$f":"IF(AR57=AR52,AJ57,\" \")","v":"lasiophthalma"},null,null,null,null,null,null,null,null,null,null,null,null,null,null,6,"quadrimaculata",null,null,null,null,null,null,null,0,{"$f":"IF(BZ50=\"x\",1,\" \")","v":" "},{"$f":"IF(BZ51=\"x\",1,\" \")","v":" "},""," ",null,null,{"$f":"IF($BZ$58=\"x\",1,\" \")","v":" "},null,{"$f":"IF($BZ$61=\"x\",1,\" \")","v":" "}," ",{"$f":"IF($BZ$64=\"x\",1,\" \")","v":" "},null,{"$f":"IF($BZ$67=\"x\",1,\" \")","v":" "}," ",null," ",null,{"$f":"IF($BZ$74=\"x\",1,\" \")","v":" "},null,0,"Melangyna quadrimaculata",null,null,null,null,null,null,null,null,null,null,null,null,{"$f":"IF(CB60,\"x\",\" \")","v":" "},null,0]
["Bagkrop kun m. parvise pletter på 3. og 4. led  ?",null,null,null,null,null,null,null,null,null,null,null,null,null,null,null,null,null,4,{"$f":"IF(AR58=AR52,AJ58,\" \")","v":"lucifera "},null,null,null,null,null,null,null,null,null,null,null,null,null,null,7,"umbellatarum",null,null,null,null,null,null,null,0,null,{"$f":"IF(BZ51=\"x\",1,\" \")","v":" "},null,{"$f":"IF($BZ$54=\"x\",1,\" \")","v":" "},{"$f":"IF(BZ56=\"x\",1,\" \")","v":" "},null,null,{"$f":"IF(BZ60=\"x\",1,\" \")","v":" "},null,{"$f":"IF($BZ$63=\"x\",1,\" \")","v":" "}," ",null," "," ",null,null,{"$f":"IF($BZ$73=\"x\",1,\" \")","v":" "},null,{"$f":"IF($BZ$75=\"x\",1,\" \")","v":" "},0,"Melangyna umbellatarum",null,null,null,null,null,null,null,null,null,null,null,null,{"$f":"IF(CB61,\"x\",\" \")","v":" "},null,0]
[null,null,null,null,null,null,null,null,null,null,null,null,null,null,null,null,null,null,5,{"$f":"IF(AR59=AR52,AJ59,\" \")","v":"pavlovskyi"},null,null,null,null,null,null,null,null,null,null,null,null,null,null,8,".",null,null,null,null,null,null,null,0,null,null,null,null,null,null,null,null,null,null,null,null,null,null,null,null,null,null,null,0,null,null,null,null,null,null,null,null,null,null,null,null,null," "]
["Pletter på 3. - 4. led rektangulære ell. ovale?",null,null,null,null,null,null,null,null,null,null,null,null,null,null,null,null,null,6,{"$f":"IF(AR60=AR52,AJ60,\" \")","v":"quadrimaculata"},null,null,null,null,null,null,null,null,null,null,null,null,null,null,9,".",null,null,null,null,null,null,null,{"$f":"SUM(AS63:BK63)","v":0},null,null,null,null,null," "," "," ",null,null,null,null," ",null,null," ",null,null,null,{"$f":"SUM(AS63:BK63)","v":0},null,null,null,null,null,null,null,null,null,null,null,null,null,{"$f":"IF(CB63,\"x\",\" \")","v":" "},null,0]
["Pletterne smalle, noget tilspidsede indadtil ?",null,null,null,null,null,null,null,null,null,null,null,null,null,null,null,null,null,7,{"$f":"IF(AR61=AR52,AJ61,\" \")","v":"umbellatarum"},null,null,null,null,null,null,null,null,null,null,null,null,null,null,10,".",null,null,null,null,null,null,null,0,null,null,null,null,null,null,null,null,null,null,null,null,null,null,null,null,null,null,null,0,null,null,null,null,null,null,null,null,null,null,null,null,null,{"$f":"IF(CB64,\"x\",\" \")","v":" "},null,0]
[null,null,null,null,null,null,null,null,null,null,null,null,null,null,null,null,null,null,null,null,null,null,null,null,null,null,null,null,null,null,null,null,null,null,11,".",null,null,null,null,null,null,null,{"$f":"SUM(AS65:BK65)","v":0},null,null,null,null,null,null,null,null,null,null,null,null,null,null,null,null,null,null,null,0,null,null,null,null,null,null,null,null,null,null,null,null,null," "]
["Hvis gule pletter på 2. led, da meget små ?",null,null,null,null,null,null,null,null,null,null,null,null,null,null,null,null,null,null,null,null,null,null,null,null,null,null,null,null,null,null,null,null,null,12,".",null,null,null,null,null,null,null,{"$f":"SUM(AS66:BK66)","v":0},null,null,null,null,null,null,null,null,null,null,null,null,null,null,null,null,null,null,null,0,null,null,null,null,null,null,null,null,null,null,null,null,null,{"$f":"IF(CB66,\"x\",\" \")","v":" "},null,0]
["Pletter på 2 .led større, aldrig runde ?",null,null,null,null,null,null,null,null,null,null,null,null,null,null,null,null,null,null,null,null,null,null,null,null,null,null,null,null,null,null,null,null,null,13,".",null,null,null,null,null,null,null,{"$f":"SUM(AS67:BK67)","v":0},null,null,null,null,null,null,null,null,null,null,null,null,null,null,null,null,null,null,null,0,null,null,null,null,null,null,null,null,null,null,null,null,null,{"$f":"IF(CB67,\"x\",\" \")","v":" "},null,0]
[null,null,null,null,null,null,null,null,null,null,null,null,null,null,null,null,{"$f":"+CB83","v":2}," Melangyna",null,null,null,{"$f":"VLOOKUP(Q68,AI55:AJ67,2)","v":"compositarum"},null,null,null,null,null,null,null,null,null,null,null,null,null,null,null,null,null,null,null,null,null,null,null,null,null,null,null,null,null,null,null,null,null,null,null,null,null,null,null,null,null,null,null,null,null,null,null,null,null,null,null,null,null,null,null," "]
["Bryst sortskinnende, mere eller mindre ?",null,null,null,null,null,null,null,null,null,null,null,null,null,null,null,{"$f":"VLOOKUP(Q68,AI70:AJ82,2)","v":"Øjne med meget kort næppe synlig behåring. Pande"},null,null,null,null,null,null,null,null,null,null,null,null,null,null,null,null,null,null,null,null,null,null,null,null,null,null,null,null,null,null,null,null,null,null,null,null,null,null,null,null,null,null,null,null,null,null,null,null,null,null,null,null,null,null,null,null,null,null,null,null,{"$f":"IF(CB69,\"x\",\" \")","v":" "},null,0]
["Bryst meget mat bestøvet ?",null,null,null,null,null,null,null,null,null,null,null,null,null,null,null,{"$f":"VLOOKUP(Q68,AI84:AJ96,2)","v":"gråpudret. Ansigt gult med sort midterstribe. Bryst "},null,null,null,null,null,null,null,null,null,null,null,null,null,null,null,null,1,1,"Adskilles fra  M.quadrimaculata ved de ubehårede øjne",null,null,null,null,null,null,null,null,null,null,null,null,null,null,null,null,null,{"$f":"SUM(AS55:BK55)","v":0},"     Mørk Svirreflue",null,null,null,null,null,null,null,null,null,null,null,null,null,null,null,null,null,null,null,null,null,null,{"$f":"IF(CB70,\"x\",\" \")","v":" "},null,0]
[null,null,null,null,null,null,null,null,null,null,null,null,null,null,null,null,{"$f":"VLOOKUP(Q68,AI98:AJ110,2)","v":"tydeligt mat. Scutellum gult med runde sorte pletter"},null,null,null,null,null,null,null,null,null,null,null,null,null,null,null,null,null,2,"Øjne med meget kort næppe synlig behåring. Pande",null,null,null,null,null,null,null,null,null,null,null,null,null,null,null,null,null,0,"     Kurve-Svirreflue",null,null,null,null,null,null,null,null,null,null,null,null,null,null,null,null,null,null,null,null,null,null," "]
["Bagkropspletter gule eller sølvpudrede?  ",null,null,null,null,null,null,null,null,null,null,null,null,null,null,null,{"$f":"VLOOKUP(Q68,AI112:AJ124,2)","v":"i forhjørnerne. Bagkrop med 3 par gule pletter, 3. og"},null,null,null,null,null,null,null,null,null,null,null,null,null,null,null,null,null,3,"Øjne kort behårede. Pande bestøvet. Ansigt gult med",null,null,null,null,null,null,null,null,null,null,null,null,null,null,null,null,null,{"$f":"SUM(AS57:BK57)","v":0},"       Håret Svirreflue",null,null,null,null,null,null,null,null,null,null,null,null,null,null,null,null,null,null,null,null,null,null,{"$f":"IF(CB72,\"x\",\" \")","v":" "},null,0]
["Pletter hvidlige (og brystet sortskinnende) ?",null,null,null,null,null,null,null,null,null,null,null,null,null,null,null,{"$f":"VLOOKUP(Q68,AI126:AJ138,2)","v":"4. leds rektangulære. Ben sorte og gule. 8-11 mm."},null,null,null,null,null,null,null,null,null,null,null,null,null,null,null,null,null,4,"Øjne behårede. Ansigt bredt, gult med sort midter-",null,null,null,null,null,null,null,null,null,null,null,null,null,null,null,null,null,{"$f":"SUM(AS58:BK58)","v":0},"    Lysende Svirreflue",null,null,null,null,null,null,null,null,null,null,null,null,null,null,null,null,null,null,null,null,null,null,{"$f":"IF(CB73,\"x\",\" \")","v":" "},null,0]
[null,null,null,null,null,null,null,null,null,null,null,null,null,null,null,null,{"$f":"VLOOKUP(Q68,AI140:AJ152,2)","v":"Sommerart, jun.-aug. Ret sjælden. M. labiatarum reg-"},null,null,null,null,null,null,null,null,null,null,null,null,null,null,null,null,null,5,"Øjne langt behårede. Pande bestøvet. Ansigt næsten al-",null,null,null,null,null,null,null,null,null,null,null,null,null,null,null,null,null,{"$f":"SUM(AS59:BK59)","v":0},".",null,null,null,null,null,null,null,null,null,null,null,null,null,null,null,null,null,null,null,null,null,null,{"$f":"IF(CB74,\"x\",\" \")","v":" "},null,0]
["Ansigt helt sort eller næsten, uden bestøvning?",null,null,null,null,null,null,null,null,null,null,null,null,null,null,null,{"$f":"VLOOKUP(Q68,AI154:AJ166,2)","v":"nes for en variant m. bl. a. større, firkantede pletter."},null,null,null,null,null,null,null,null,null,null,null,null,null,null,null,null,null,6,"Øjne behårede (undersøg nøje). Ansigt sort- Brystets",null,null,null,null,null,null,null,null,null,null,null,null,null,null,null,null,null,{"$f":"SUM(AS60:BK60)","v":0},"     Firplettet Svirreflue",null,null,null,null,null,null,null,null,null,null,null,null,null,null,null,null,null,null,null,null,null,null,{"$f":"IF(CB75,\"x\",\" \")","v":" "},null,0]
["Ansigt mere eller minder bestøvet?",null,null,null,null,null,null,null,null,null,null,null,null,null," ",null,null,null,null,null,null,null,null,null,null,null,null,null,null,null,null,null,null,null,7,"Øjne uden hår. Pande gråt bestøvet. Ansigt gult med",null,null,null,null,null,null,null,null,null,null,null,null,null,null,null,null,null,{"$f":"SUM(AS61:BK61)","v":0},"      Skærm-Svirreflue"]
[null,null,null,null,null,null,null,null,null,null,null,null,null,null,null,null,null,null,null,null,null,null,null,"Melangyna HANNER m. billeder 1",null,null,null,null,null,null,null,null,null,null,8,"."]
[null,null,null,null,null,null,null,null,null,null,null,null,null,null,null,null,null,null,null,null,null,null,null,null,null,null,null,null,null,null,null,null,null,null,9,"."]
[null,null,null,null,null,null,null,null,null,null,null,null,null,null,null,null,null,null,null,null,null,null,null,null,null,null,null,null,null,null,null,null,null,null,10,"."]
[null,null,null,null,null,null,null,null,null,null,null,null,null,null,null,null,null,null,null,null,null,null,null,null,null,null,null,null,null,null,null,null,null,null,11,"."]
[null,null,null,null,null,null,null,null,null,null,null,null,null,null,null,null,null,null,null,null,null,null,null,null,null,null,null,null,null,null,null,null,null,null,12,"."]
[null,null,null,null,null,null,null,null,null,null,null,null,null,null,null,null,null,null,null,null,null,null,null,null,null,null,null,null,null,null,null,null,null,null,13,"."]
[null,null,null,null,null,null,null,null,null,null,null,null,null,null,null,null,null,null,null,null,null,null,null,null,null,null,null,null,null,null,null,null,null,null,null,null,null,null,null,null,null,null,null,null,null,null,null,null,null,null,null,null,null,{"$f":"SUM(AS63:BK63)","v":0},null,null,null,null,null,null,null,null,null,null,null,null,null,null,null,null,null,null,null,null,null,null,null,null,null,2]
[null,null,null,null,null,null,null,null,null,null,null,null,null,null,null,null,null,null,null,null,null,null,null,null,null,null,null,null,null,null,null,null,null,2,1,"og den sorte behåring på brystets overside og scutellum",null,null,null,null,null,null,null,null,null,null,null,null,null,null,null,null,null,0]
[null,null,null,null,null,null,null,null,null,null,null,null,null,null,null,null,null,null,null,null,null,null,null,null,null,null,null,null,null,null,null,null,null,null,2,"gråpudret. Ansigt gult med sort midterstribe. Bryst ",null,null,null,null,null,null,null,null,null,null,null,null,null,null,null,null,null,0]
[null,null,null,null,null,null,null,null,null,null,null,null,null,null,null,null,null,null,null,null,null,null,null,null,null,null,null,null,null,null,null,null,null,null,3,"sort midterstribe. Bryst metalskinnende med lang lys",null,null,null,null,null,null,null,null,null,null,null,null,null,null,null,null,null,0]
[null,null,null,null,null,null,null,null,null,null,null,null,null,null,null,null,null,null,null,null,null,null,null,null,null,null,null,null,null,null,null,null,null,null,4,"stribe. Scutellum gult m. sorte forhjørner og sidekanter.",null,null,null,null,null,null,null,null,null,null,null,null,null,null,null,null,null,0]
[null,null,null,null,null,null,null,null,null,null,null,null,null,null,null,null,null,null,null,null,null,null,null,null,null,null,null,null,null,null,null,null,null,null,5,"tid sort. Kroppen langt lyst behåret. Scutellum oftest",null,null,null,null,null,null,null,null,null,null,null,null,null,null,null,null,null," "]
[null,null,null,null,null,null,null,null,null,null,null,null,null,null,null,null,null,null,null,null,null,null,null,null,null,null,null,null,null,null,null,null,null,null,6,"overside lyst behåret, smalt sort ved siderne. Scutellum"]
[null,null,null,null,null,null,null,null,null,null,null,null,null,null,null,null,null,null,null,null,null,null,null,null,null,null,null,null,null,null,null,null,null,null,7,"sort midterstribe. Bryst sortskinnende. Scutellum"]
[null,null,null,null,null,null,null,null,null,null,null,null,null,null,null,null,null,null,null,null,null,null,null,null,null,null,null,null,null,null,null,null,null,null,8,"."]
[null,null,null,null,null,null,null,null,null,null,null,null,null,null,null,null,null,null,null,null,null,null,null,null,null,null,null,null,null,null,null,null,null,null,9,"."]
[null,null,null,null,null,null,null,null,null,null,null,null,null,null,null,null,null,null,null,null,null,null,null,null,null,null,null,null,null,null,null,null,null,null,10,"."]
[null,null,null,null,null,null,null,null,null,null,null,null,null,null,null,null,null,null,null,null,null,null,null,null,null,null,null,null,null,null,null,null,null,null,11,"."]
[null,null,null,null,null,null,null,null,null,null,null,null,null,null,null,null,null,null,null,null,null,null,null,null,null,null,null,null,null,null,null,null,null,null,12,"."]
[null,null,null,null,null,null,null,null,null,null,null,null,null,null,null,null,null,null,null,null,null,null,null,null,null,null,null,null,null,null,null,null,null,null,13,"."]
[]
[null,null,null,null,null,null,null,null,null,null,null,null,null,null,null,null,null,null,null,null,null,null,null,null,null,null,null,null,null,null,null,null,null,3,1,"(belysning snyder let). Panden sort, ubestøvet. Ansig-"]
[null,null,null,null,null,null,null,null,null,null,null,null,null,null,null,null,null,null,null,null,null,null,null,null,null,null,null,null,null,null,null,null,null,null,2,"tydeligt mat. Scutellum gult med runde sorte pletter"]
[null,null,null,null,null,null,null,null,null,null,null,null,null,null,null,null,null,null,null,null,null,null,null,null,null,null,null,null,null,null,null,null,null,null,3,"behåring. Scutellum gult, med kileformede sorte side-"]
[null,null,null,null,null,null,null,null,null,null,null,null,null,null,null,null,null,null,null,null,null,null,null,null,null,null,null,null,null,null,null,null,null,null,4,"2. bagkropsled med meget små runde gule pletter. "]
[null,null,null,null,null,null,null,null,null,null,null,null,null,null,null,null,null,null,null,null,null,null,null,null,null,null,null,null,null,null,null,null,null,null,5,"gult, mørkere midt på. 2. bagkropsled helt sort eller  "]
[null,null,null,null,null,null,null,null,null,null,null,null,null,null,null,null,null,null,null,null,null,null,null,null,null,null,null,null,null,null,null,null,null,null,6,"sort, måske brunt på midten, langt lyst behåret. 2. bag-"]
[null,null,null,null,null,null,null,null,null,null,null,null,null,null,null,null,null,null,null,null,null,null,null,null,null,null,null,null,null,null,null,null,null,null,7,"gult med runde sorte pletter i forhjønerne. Bagkroppen"]
[null,null,null,null,null,null,null,null,null,null,null,null,null,null,null,null,null,null,null,null,null,null,null,null,null,null,null,null,null,null,null,null,null,null,8,"."]
[null,null,null,null,null,null,null,null,null,null,null,null,null,null,null,null,null,null,null,null,null,null,null,null,null,null,null,null,null,null,null,null,null,null,9,"."]
[null,null,null,null,null,null,null,null,null,null,null,null,null,null,null,null,null,null,null,null,null,null,null,null,null,null,null,null,null,null,null,null,null,null,10,"."]
[null,null,null,null,null,null,null,null,null,null,null,null,null,null,null,null,null,null,null,null,null,null,null,null,null,null,null,null,null,null,null,null,null,null,11,"."]
[null,null,null,null,null,null,null,null,null,null,null,null,null,null,null,null,null,null,null,null,null,null,null,null,null,null,null,null,null,null,null,null,null,null,12,"."]
[null,null,null,null,null,null,null,null,null,null,null,null,null,null,null,null,null,null,null,null,null,null,null,null,null,null,null,null,null,null,null,null,null,null,13,"."]
[null,null,null,null,null,null,null,null,null,null,null,null,null,null,null,null,null,null,null,null,null,null,null,null,null,null,null,null,null,null,null,null,null,null,null,null,null,null,null,null,null,null,null,null,null,null,null,null,null,null,null,null,null,null,null,null,null,null,null,null,null,null,null,null,null,null,null,null,null,null,null,null,null,null,null,null,null,null,null,null,null,null,null,null,null,null,null,null,null,{"$f":"SUM(Q68)","v":2},{"$f":"VLOOKUP(CL111,'Ark2'!C4:D10,2,FALSE)","v":"ark2!B5"}]
[null,null,null,null,null,null,null,null,null,null,null,null,null,null,null,null,null,null,null,null,null,null,null,null,null,null,null,null,null,null,null,null,null,4,1,"tet sort, ofte med lysere sider. 2. bagkropsled sort.",null,null,null,null,null,null,null,null,null,null,null,null,null,null,null,null,null,null,null,null,null,null,null,null,null,null,null,null,null,null,null,null,null,null,null,null,null,null,null,null,null,null,null,null,null,null,null,null,null,null,null,null,null,{"$f":"SUM(BY48)","v":19},{"$f":"VLOOKUP(CL112,'Ark2'!H4:I22,2,FALSE)","v":"ark2!G22"}]
[null,null,null,null,null,null,null,null,null,null,null,null,null,null,null,null,null,null,null,null,null,null,null,null,null,null,null,null,null,null,null,null,null,null,2,"i forhjørnerne. Bagkrop med 3 par gule pletter, 3. og"]
[null,null,null,null,null,null,null,null,null,null,null,null,null,null,null,null,null,null,null,null,null,null,null,null,null,null,null,null,null,null,null,null,null,null,3,"kanter. Bagkrop med noget ovale gule pletter, på 2. led "]
[null,null,null,null,null,null,null,null,null,null,null,null,null,null,null,null,null,null,null,null,null,null,null,null,null,null,null,null,null,null,null,null,null,null,4,"3. og 4. led med smalle sølvpudrede gule pletter, der"]
[null,null,null,null,null,null,null,null,null,null,null,null,null,null,null,null,null,null,null,null,null,null,null,null,null,null,null,null,null,null,null,null,null,null,5,"med meget lille plet. 3. og 4. led med ret små ovale"]
[null,null,null,null,null,null,null,null,null,null,null,null,null,null,null,null,null,null,null,null,null,null,null,null,null,null,null,null,null,null,null,null,null,null,6,"kropsld sort, 3. og 4.led med smalle gule pletter, der"]
[null,null,null,null,null,null,null,null,null,null,null,null,null,null,null,null,null,null,null,null,null,null,null,null,null,null,null,null,null,null,null,null,null,null,7,"med 3 par hvidgule pletter,  rektangulære på 2. og 3."]
[null,null,null,null,null,null,null,null,null,null,null,null,null,null,null,null,null,null,null,null,null,null,null,null,null,null,null,null,null,null,null,null,null,null,8,"."]
[null,null,null,null,null,null,null,null,null,null,null,null,null,null,null,null,null,null,null,null,null,null,null,null,null,null,null,null,null,null,null,null,null,null,9,"."]
[null,null,null,null,null,null,null,null,null,null,null,null,null,null,null,null,null,null,null,null,null,null,null,null,null,null,null,null,null,null,null,null,null,null,10,"."]
[null,null,null,null,null,null,null,null,null,null,null,null,null,null,null,null,null,null,null,null,null,null,null,null,null,null,null,null,null,null,null,null,null,null,11,"."]
[null,null,null,null,null,null,null,null,null,null,null,null,null,null,null,null,null,null,null,null,null,null,null,null,null,null,null,null,null,null,null,null,null,null,12,"."]
[null,null,null,null,null,null,null,null,null,null,null,null,null,null,null,null,null,null,null,null,null,null,null,null,null,null,null,null,null,null,null,null,null,null,13,"."]
[]
[null,null,null,null,null,null,null,null,null,null,null,null,null,null,null,null,null,null,null,null,null,null,null,null,null,null,null,null,null,null,null,null,null,5,1,"På 3. og 4. led smalle gule plette, der spidser til indefter."]
[null,null,null,null,null,null,null,null,null,null,null,null,null,null,null,null,null,null,null,null,null,null,null,null,null,null,null,null,null,null,null,null,null,null,2,"4. leds rektangulære. Ben sorte og gule. 8-11 mm."]
[null,null,null,null,null,null,null,null,null,null,null,null,null,null,null,null,null,null,null,null,null,null,null,null,null,null,null,null,null,null,null,null,null,null,3,"aldrig små og runde. Ben overvejende mørke. Skinne-"]
[null,null,null,null,null,null,null,null,null,null,null,null,null,null,null,null,null,null,null,null,null,null,null,null,null,null,null,null,null,null,null,null,null,null,4,"tilspidses indad til. Benene er delvis gule. Mellemste"]
[null,null,null,null,null,null,null,null,null,null,null,null,null,null,null,null,null,null,null,null,null,null,null,null,null,null,null,null,null,null,null,null,null,null,5,"eller rektangulære pletter. Bene er delvis gule. 7-8 mm."]
[null,null,null,null,null,null,null,null,null,null,null,null,null,null,null,null,null,null,null,null,null,null,null,null,null,null,null,null,null,null,null,null,null,null,6,"spidser til indefter. Ben sorte, måske lidt brune ved knæ-"]
[null,null,null,null,null,null,null,null,null,null,null,null,null,null,null,null,null,null,null,null,null,null,null,null,null,null,null,null,null,null,null,null,null,null,7,"led. Benene er sorte og gule. 9-10 mm.  Sommerart."]
[null,null,null,null,null,null,null,null,null,null,null,null,null,null,null,null,null,null,null,null,null,null,null,null,null,null,null,null,null,null,null,null,null,null,8,"."]
[null,null,null,null,null,null,null,null,null,null,null,null,null,null,null,null,null,null,null,null,null,null,null,null,null,null,null,null,null,null,null,null,null,null,9,"."]
[null,null,null,null,null,null,null,null,null,null,null,null,null,null,null,null,null,null,null,null,null,null,null,null,null,null,null,null,null,null,null,null,null,null,10,"."]
[null,null,null,null,null,null,null,null,null,null,null,null,null,null,null,null,null,null,null,null,null,null,null,null,null,null,null,null,null,null,null,null,null,null,11,"."]
[null,null,null,null,null,null,null,null,null,null,null,null,null,null,null,null,null,null,null,null,null,null,null,null,null,null,null,null,null,null,null,null,null,null,12,"."]
[null,null,null,null,null,null,null,null,null,null,null,null,null,null,null,null,null,null,null,null,null,null,null,null,null,null,null,null,null,null,null,null,null,null,13,"."]
[]
[null,null,null,null,null,null,null,null,null,null,null,null,null,null,null,null,null,null,null,null,null,null,null,null,null,null,null,null,null,null,null,null,null,6,1,"Ben sorte, ved knæene ofte gulbrune. 7-8 mm. Forårs-"]
[null,null,null,null,null,null,null,null,null,null,null,null,null,null,null,null,null,null,null,null,null,null,null,null,null,null,null,null,null,null,null,null,null,null,2,"Sommerart, jun.-aug. Ret sjælden. M. labiatarum reg-"]
[null,null,null,null,null,null,null,null,null,null,null,null,null,null,null,null,null,null,null,null,null,null,null,null,null,null,null,null,null,null,null,null,null,null,3,"ben gule i inderste halvdel, ofte mere gule. 8-11 mm."]
[null,null,null,null,null,null,null,null,null,null,null,null,null,null,null,null,null,null,null,null,null,null,null,null,null,null,null,null,null,null,null,null,null,null,4,"skinneben ofte helt gult.  8-10 mm. Forårsart, mar.-maj."]
[null,null,null,null,null,null,null,null,null,null,null,null,null,null,null,null,null,null,null,null,null,null,null,null,null,null,null,null,null,null,null,null,null,null,5,"Forårsart,  mar.-maj. Nyere art under udbredelse i "]
[null,null,null,null,null,null,null,null,null,null,null,null,null,null,null,null,null,null,null,null,null,null,null,null,null,null," ",null,null,null,null,null,null,null,6,"ene. 6-9 mm.  Forårsart,  mar.- maj. Ret sjælden."]
[null,null,null,null,null,null,null,null,null,null,null,null,null,null,null,null,null,null,null,null,null,null,null,null,null,null,null,null,null,null,null,null,null,null,7,"jun-aug. Ret aæmindelig-"]
[null,null,null,null,null,null,null,null,null,null,null,null,null,null,null,null,null,null,null,null,null,null,null,null,null,null,null,null,null,null,null,null,null,null,8,"."]
[null,null,null,null,null,null,null,null,null,null,null,null,null,null,null,null,null,null,null,null,null,null,null,null,null,null,null,null,null,null,null,null,null,null,9,"."]
[null,null,null,null,null,null,null,null,null,null,null,null,null,null,null,null,null,null,null,null,null,null,null,null,null,null,null,null,null,null,null,null,null,null,10,"."]
[null,null,null,null,null,null,null,null,null,null,null,null,null,null,null,null,null,null,null,null,null,null,null,null,null,null,null,null,null,null,null,null,null,null,11,"."]
[null,null,null,null,null,null,null,null,null,null,null,null,null,null,null,null,null,null,null,null,null,null,null,null,null,null,null,null,null,null,null,null,null,null,12,"."]
[null,null,null,null,null,null,null,null,null,null,null,null,null,null,null,null,null,null,null,null,null,null,null,null,null,null,null,null,null,null,null,null,null,null,13,"."]
[]
[null,null,null,null,null,null,null,null,null,null,null,null,null,null,null,null,null,null,null,null,null,null,null,null,null,null,null,null,null,null,null,null,null,7,1,"art,  mar.-maj. Sjælden på Øerne, Hyppigere i Jylland."]
[null,null,null,null,null,null,null,null,null,null,null,null,null,null,null,null,null,null,null,null,null,null,null,null,null,null,null,null,null,null,null,null,null,null,2,"nes for en variant m. bl. a. større, firkantede pletter."]
[null,null,null,null,null,null,null,null,null,null,null,null,null,null,null,null,null,null,null,null,null,null,null,null,null,null,null,null,null,null,null,null,null,null,3,"Forårsart, mar.-maj. Ret almindelig."]
[null,null,null,null,null,null,null,null,null,null,null,null,null,null,null,null,null,null,null,null,null,null,null,null,null,null,null,null,null,null,null,null,null,null,4,"Meget sjælden."]
[null,null,null,null,null,null,null,null,null,null,null,null,null,null,null,null,null,null,null,null,null,null,null,null,null,null,null,null,null,null,null,null,null,null,5,"Meget sjælden .Mest fundet i Nordøstsjælland."]
[null,null,null,null,null,null,null,null,null,null,null,null,null,null,null,null,null,null,null,null,null,null,null,null,null,null,null,null,null,null,null,null,null,null,6,"."]
[null,null,null,null,null,null,null,null,null,null,null,null,null,null,null,null,null,null,null,null,null,null,null,null,null,null,null,null,null,null,null,null,null,null,7,"."]
[null,null,null,null,null,null,null,null,null,null,null,null,null,null,null,null,null,null,null,null,null,null,null,null,null,null,null,null,null,null,null,null,null,null,8,"."]
[null,null,null,null,null,null,null,null,null,null,null,null,null,null,null,null,null,null,null,null,null,null,null,null,null,null,null,null,null,null,null,null,null,null,9,"."]
[null,null,null,null,null,null,null,null,null,null,null,null,null,null,null,null,null,null,null,null,null,null,null,null,null,null,null,null,null,null,null,null,null,null,10,"."]
[null,null,null,null,null,null,null,null,null,null,null,null,null,null,null,null,null,null,null,null,null,null,null,null,null,null,null,null,null,null,null,null,null,null,11,"."]
[null,null,null,null,null,null,null,null,null,null,null,null,null,null,null,null,null,null,null,null,null,null,null,null,null,null,null,null,null,null,null,null,null,null,12,"."]
[null,null,null,null,null,null,null,null,null,null,null,null,null,null,null,null,null,null,null,null,null,null,null,null,null,null,null,null,null,null,null,null,null,null,13]
[null,null,null,null,null,null,null,null,null,null,null,null,null,null,null,null,null,null,null,null,null,null,null,null,null,null,null,null,null,null,null,null,null,null,null,"."]

{"sheet":"Ark2","index":1,"n_rows":22,"n_cols":9,"rows_kept":22,"cut":false,"hidden":false,"merged":[]}
[]
[]
[]
[null,null,1,"ark2!B4","M. barbifrons",null,null,1,"ark2!G4"]
[null,null,2,"ark2!B5","M. compositarum",null,null,2,"ark2!G5"]
[null,null,3,"ark2!B6","M. lasiophthalma",null,null,3,"ark2!G6"]
[null,null,4,"ark2!B7","M. lucifera",null,null,4,"ark2!G7"]
[null,null,5,"ark2!B8","M. pavlovskyi",null,null,5,"ark2!G8"]
[null,null,6,"ark2!B9","M. quadrimaculata",null,null,6,"ark2!G9"]
[null,null,7,"ark2!B10","M. umbellatarum",null,null,7,"ark2!G10"]
[null,null,null,null,null,null,null,8,"ark2!G11"]
[null,null,null,null,null,null,null,9,"ark2!G12"]
[null,null,null,null,null,null,null,10,"ark2!G13"]
[null,null,null,null,null,null,null,11,"ark2!G14"]
[null,null,null,null,null,null,null,12,"ark2!G15"]
[null,null,null,null,null,null,null,13,"ark2!G16"]
[null,null,null,null,null,null,null,14,"ark2!G17"]
[null,null,null,null,null,null,null,15,"ark2!G18"]
[null,null,null,null,null,null,null,16,"ark2!G19"]
[null,null,null,null,null,null,null,17,"ark2!G20"]
[null,null,null,null,null,null,null,18,"ark2!G21"]
[null,null,null,null,null,null,null,19,"ark2!G22"]

{"sheet":"Ark3","index":2,"n_rows":0,"n_cols":0,"rows_kept":0,"cut":false,"hidden":false,"merged":[]}

{"sheet":"Ark4","index":3,"n_rows":0,"n_cols":0,"rows_kept":0,"cut":false,"hidden":false,"merged":[]}

{"sheet":"Ark5","index":4,"n_rows":0,"n_cols":0,"rows_kept":0,"cut":false,"hidden":false,"merged":[]}

{"sheet":"Ark6","index":5,"n_rows":0,"n_cols":0,"rows_kept":0,"cut":false,"hidden":false,"merged":[]}